Cogmind - Beta 15 @@@ ROGUE MODE // 2025.07.22 @ 15:01:04 Player: carterz30cal Result: Smashed by cave-in Performance ------------- Evolutions (1) 500 Regions Visited (3) 600 Robots Destroyed (86) 430 Value Destroyed (2014) 2014 Prototype IDs (5) 100 Alien Tech Used (0) 0 Bonus (54) 54 TOTAL SCORE: 3698 Bonus ------- High Alert Combat Kills 54 Cogmind --------- Core Integrity 0/400 Matter 27/300 Energy 84/100 System Corruption 13% Temperature Cool (8) Movement Walking (120) Location -9/Mines Parts ------- > --- POWER (1) -------- (None) > --- PROPULSION (3) --- Improved Aluminum Leg Improved Aluminum Leg > --- UTILITY (3) ------ (None) > --- WEAPON (2) ------- Rocket Launcher > --- INVENTORY (5) ---- Aluminum Leg Hardened Light Armor Plating Beam Rifle Beam Rifle Beam Rifle Peak State ------------ > --- POWER ------------ Improved Ion Engine > --- PROPULSION ------- Improved Aluminum Leg Improved Aluminum Leg Improved Aluminum Leg > --- UTILITY ---------- Improved Heat Sink Medium Storage Unit Hardened Light Armor Plating > --- WEAPON ----------- Beam Rifle Beam Rifle > --- INVENTORY -------- Aluminum Leg Aluminum Leg Visual Processing Unit Core Shielding Light Armor Plating Beam Rifle Beam Rifle Beam Rifle Improved Light Cannon Rocket Launcher [Rating: 19] Favorites ----------- Power Improved Ion Engine Engine Improved Ion Engine Propulsion Improved Aluminum Leg Treads Light Treads Leg Improved Aluminum Leg Utility Medium Storage Unit Device Improved Heat Sink Storage Medium Storage Unit Protection Hardened Light Armor Plating Weapon Beam Rifle Energy Gun Beam Rifle Ballistic Gun Assault Rifle Launcher Rocket Launcher Build | -11 -10 -9 -9 ------- Run | Yrd Mat Mat Min Slots Evolved 2 | . . 2 . Power . | . . . . Propulsion 1 | . . 1 . Utility 1 | . . 1 . Weapon . | . . . . Parts Attached 42 | 7 9 25 1 Power 7 | 1 1 5 . Engine 7 | 1 1 5 . Core . | . . . . Reactor . | . . . . Propulsion 13 | 2 1 10 . Treads 3 | 2 1 . . Leg 10 | . . 10 . Wheel . | . . . . Hover . | . . . . Flight . | . . . . Utility 8 | 2 3 3 . Device 2 | 1 1 . . Storage 4 | 1 2 1 . Processor . | . . . . Hackware . | . . . . Protection 2 | . . 2 . Artifact . | . . . . Weapon 14 | 2 4 7 1 Energy Gun 10 | 1 3 5 1 Energy Cannon . | . . . . Ballistic Gun 3 | 1 1 1 . Ballistic Cannon . | . . . . Launcher 1 | . . 1 . Special Weapon . | . . . . Impact Weapon . | . . . . Slashing Weapon . | . . . . Piercing Weapon . | . . . . Special Melee Weapon . | . . . . Unidentified Prototypes 2 | . . 2 . Parts Lost 13 | . 4 3 6 Power 4 | . 1 2 1 Propulsion 1 | . . . 1 Utility 4 | . 1 . 3 Weapon 4 | . 2 1 1 Highest Loss Streak 6 | . 2 2 6 To Critical Strikes . | . . . . Average Backups 7 | 2 5 8 10 Power . | . 1 . . Propulsion 2 | . 2 2 2 Utility 1 | . . . 3 Weapon 3 | . 1 4 5 Tool/Special . | . . . . Unused Backups 11 | . . 3 8 Power . | . . . . Propulsion 3 | . . 1 2 Utility 4 | . . 1 3 Weapon 4 | . . 1 3 Tool/Special . | . . . . Average Slot Usage (%) 95 | . 90 96 99 Engine 11 | . 13 11 10 Treads 8 | . 28 . . Leg 22 | . . 32 32 Device 9 | . 5 10 10 Storage 11 | . 14 11 11 Protection 6 | . . 7 10 Energy Gun 17 | . 17 20 12 Ballistic Gun 3 | . 10 1 . Launcher 2 | . . . 9 Peak Build Rating 19 | 9 10 19 19 Average Rating 13 | 4 7 15 18 On Entrance 9 | . 9 10 19 Naked Turns . | . . . . Heaviest Build 89 | 14 89 29 30 Greatest Support 40 | 40 40 39 39 Greatest Overweight (x) 2 | . 2 . . Average Overweight (x) . | . 1 . . Largest Inventory Capacity 25 | 8 25 10 10 Average Capacity 13 | 7 20 10 10 Most Carried 10 | 3 9 10 10 Average Carried 7 | 2 5 8 10 Final Capacity 10 | 8 10 10 5 Final Carried 10 | 3 6 10 5 Class Distribution -------------------- 62% | Mutant 37% | Scavenger-Mutant Dominant Class ---------------- Mutant | -10/Materials Scavenger-Mutant | -9/Materials Mutant | -9/Mines Resources | -11 -10 -9 -9 ----------- Run | Yrd Mat Mat Min Matter Collected 1094 | 96 526 359 113 Remotely . | . . . . Salvage Created 3127 | 88 1093 1861 85 Parts 162 | 4 61 91 6 Haulers Intercepted 4 | . 1 3 . Recyclers Shooed 6 | . 4 1 1 Parts Field Recycled . | . . . . Retrieved Matter . | . . . . Parts Self-Destructed . | . . . . Prevented . | . . . . Kills | -11 -10 -9 -9 ------- Run | Yrd Mat Mat Min Combat Hostiles Destroyed 68 | . 26 33 9 Guns 61 | . 26 31 4 AOE 6 | . . 1 5 Classes Destroyed 11 | 2 6 2 1 Worker 5 | . 2 1 2 Builder 2 | . 1 1 . Tunneler 3 | 2 . 1 . Hauler 4 | . 1 3 . Recycler 6 | 1 . 5 . Operator 1 | . . 1 . Watcher 5 | . 2 3 . Swarmer 15 | . 6 9 . Grunt 39 | . 20 18 1 Sentry 6 | . . 6 . Assembled 8 | . . . 8 Best Kill Streak 9 | 2 4 4 9 Combat Bots Only 8 | . 3 4 8 Max Kills in Single Turn 3 | 1 1 2 3 Gunslinging . | . . . . Exploded 2 | . . 1 2 Melee . | . . . . Uniques/NPCs Destroyed . | . . . . Combat | -11 -10 -9 -9 -------- Run | Yrd Mat Mat Min Hostile Shots Fired 269 | . 121 128 20 Missed 82 | . 32 44 6 Hits 187 | . 89 84 14 Projectile 187 | . 89 84 14 Critical Strikes 4 | . 1 3 . Damage Taken 3010 | . 986 927 1097 Core 644 | . 227 110 307 Absorbed by Shields . | . . . . Regen/Repaired (Parts) 99 | . . 99 . Core Remaining (%) 54 | 100 9 . . Volleys Fired 294 | 5 118 116 55 Largest 2 | 2 2 2 2 Hottest 121 | 60 105 121 112 Shots Fired 552 | 10 220 230 92 Gun 513 | 10 220 227 56 Cannon . | . . . . Launcher 39 | . . 3 36 Special . | . . . . Kinetic 120 | 5 102 13 . Thermal 393 | 5 118 214 56 Explosive 39 | . . 3 36 Electromagnetic . | . . . . Robot Hit Streak 18 | 4 14 18 6 Robot Miss Streak 7 | 1 6 7 5 Penetration Max . | . . . . Secondary Targets 6 | . 3 3 . Max Gunslinging Chain 1 | . 1 1 . Shots Hit Robots 314 | 8 144 143 19 Core Hits 133 | 4 53 61 15 Critical Kills 1 | . 1 . . Critical Parts Destroyed 1 | . 1 . . Critical Strikes 16 | . 2 12 2 Burn 14 | . . 12 2 Destroy 2 | . 2 . . Melee Attacks . | . . . . Impact . | . . . . Slashing . | . . . . Piercing . | . . . . Sneak Attacks . | . . . . Combat Hostiles . | . . . . Follow-up Attacks . | . . . . Damage Inflicted 4862 | 100 1798 2390 574 Guns 4342 | 100 1798 2208 236 Cannons . | . . . . Explosions 511 | . . 173 338 Melee . | . . . . Ramming 9 | . . 9 . Kinetic 977 | 55 887 35 . Thermal 3365 | 45 911 2173 236 Explosive 511 | . . 173 338 Electromagnetic . | . . . . Impact . | . . . . Slashing . | . . . . Piercing . | . . . . Highest Corruption 9 | . . . 9 Average Corruption 5 | . . . 5 Corruption Purged . | . . . . Corruption Blocked . | . . . . Effects 1 | . . . 1 Energy Discharges 1 | . . . 1 Overload Shots . | . . . . Overflow Damage 12 | . . . 12 Projectiles . | . . . . Explosions 12 | . . . 12 Melee . | . . . . Knockbacks . | . . . . Impact . | . . . . Kinetic . | . . . . Secondary . | . . . . Self-Inflicted Damage 164 | . . . 164 Shots 6 | . . . 6 Rammed . | . . . . Targets Rammed 1 | . . 1 . Kicked 1 | . . 1 . Crushed . | . . . . Highest Temperature 298 | . 287 298 18 Average Temperature 46 | . 74 28 7 Received Heat Transfer 818 | . 465 327 26 Effects 2 | . 2 . . Interference 2 | . 2 . . Siege Activations . | . . . . Martial Activations . | . . . . Shielding Activations . | . . . . Robots Disrupted . | . . . . Combat Hostiles . | . . . . Robots Corrupted . | . . . . Combat Hostiles . | . . . . Parts Fried . | . . . . Impact Corruptions . | . . . . Robots Melted 1 | . . 1 . Combat Hostiles 1 | . . 1 . Parts Melted 17 | . 1 16 . Heat Transferred 9013 | 100 1957 6216 740 Parts Sabotaged . | . . . . Parts Stolen . | . . . . Parts Stripped . | . . . . Power Chain Reactions . | . . . . Alert | -11 -10 -9 -9 ------- Run | Yrd Mat Mat Min Maximum Alert Level 2 | . . 2 1 Low Security (%) 71 | 100 100 26 98 Level 1 19 | . . 48 1 Level 2 9 | . . 24 . Level 3 . | . . . . Level 4 . | . . . . Level 5 . | . . . . High Security . | . . . . Max Security . | . . . . Peak Influence 533 | 5 184 533 204 Initial 204 | . 3 74 204 Average 158 | 1 108 295 38 Influence Increases 1961 | 15 690 1093 163 Destroy 0b10 Robot/C 1200 | . 520 660 20 Destroy 0b10 Robot/NC 130 | 15 30 75 10 Destroy Leader 298 | . 116 172 10 Successful Hack 48 | . 22 26 . Disable Machine 60 | . . 45 15 Destroy Structure 135 | . 2 25 108 Lose Combat Pursuer 90 | . . 90 . Influence Decreases 1961 | 10 519 744 688 Entered New Map 425 | . 2 102 321 Time Decay 1450 | 10 477 612 351 Lost Part 86 | . 40 30 16 Squads Dispatched 14 | . 6 7 1 Investigation 7 | . 4 3 . Extermination . | . . . . Reinforcement 7 | . 2 4 1 Assault . | . . . . Garrison . | . . . . Intercept . | . . . . Searches Triggered . | . . . . Construction Impeded 2 | . . 1 1 Haulers Reinforced . | . . . . Active Scanning Responses . | . . . . Cargo Convoy Interrupts . | . . . . Stealth | -11 -10 -9 -9 --------- Run | Yrd Mat Mat Min Distress Signals 11 | . 2 9 . Communications Jammed . | . . . . Distress Signals . | . . . . Times Spotted 116 | . 41 58 17 Peak Tracking Total 12 | . 4 4 12 Tactical Retreats 5 | . . 5 . Traps | -11 -10 -9 -9 ------- Run | Yrd Mat Mat Min Traps Triggered 2 | . 2 . . Indirectly . | . . . . Trap Hack Attempts . | . . . . Triggered . | . . . . Disarmed . | . . . . Reprogrammed . | . . . . Reused . | . . . . Traps Extracted . | . . . . Installed . | . . . . Triggered . | . . . . Machines | -11 -10 -9 -9 ---------- Run | Yrd Mat Mat Min Machines Disabled 4 | . . 3 1 Max in Single Turn 1 | . . 1 1 Machines Repaired . | . . . . Machines Dismantled . | . . . . Machines Sabotaged . | . . . . Overloaded Fab Kills . | . . . . Hacking | -11 -10 -9 -9 --------- Run | Yrd Mat Mat Min Machines Accessed 11 | . 5 6 . Terminals 7 | . 3 4 . Fabricators . | . . . . Repair Stations 2 | . . 2 . Recycling Units 2 | . 2 . . Scanalyzers . | . . . . Garrison Access . | . . . . Total Hacks 36 | . 18 18 . Successful 20 | . 9 11 . Failed 15 | . 9 6 . Catastrophic 3 | . . 3 . Database Lockouts 1 | . . 1 . Manual 7 | . 4 3 . Terminals 24 | . 12 12 . Fabricators . | . . . . Repair Stations 6 | . . 6 . Recycling Units 6 | . 6 . . Scanalyzers . | . . . . Garrison Access . | . . . . Terminal Hacks 13 | . 6 7 . Robot Analysis 3 | . 2 1 . Prototype ID Bank 2 | . 1 1 . Level Access Points 1 | . . 1 . Branch Access Points 1 | . 1 . . Dispatch Records 2 | . 1 1 . Transport Status 2 | . . 2 . Zone Layout 2 | . 1 1 . Fabricator Hacks . | . . . . Repair Station Hacks 4 | . . 4 . Scan Component 2 | . . 2 . Repair 2 | . . 2 . Recycling Unit Hacks 3 | . 3 . . Report Inventory 2 | . 2 . . Retrieve Components 1 | . 1 . . Scanalyzer . | . . . . Garrison Access Hacks . | . . . . Unauthorized Hacks . | . . . . Terminals . | . . . . Fabricators . | . . . . Repair Stations . | . . . . Recycling Units . | . . . . Scanalyzers . | . . . . Garrison Access . | . . . . Data Cores Recovered 1 | . . 1 . Used 1 | . . 1 . Hacking Detections 11 | . 5 6 . Full Trace Events 6 | . 3 3 . Feedback Events . | . . . . Feedback Blocked . | . . . . Robot Schematics Acquired . | . . . . Robots Built . | . . . . Authchips . | . . . . Time . | . . . . Total Robot Build Rating . | . . . . Part Schematics Acquired . | . . . . Parts Built . | . . . . Authchips . | . . . . Time . | . . . . Total Part Build Rating . | . . . . Parts Repaired 2 | . . 2 . Time 64 | . . 64 . Parts Recycled . | . . . . Recycled Matter . | . . . . Retrieved Matter . | . . . . Retrieved Components 9 | . 9 . . Parts Scanalyzed . | . . . . Part Schematics Acquired . | . . . . Parts Damaged . | . . . . Bothacking | -11 -10 -9 -9 ------------ Run | Yrd Mat Mat Min Used RIF Installer . | . . . . Robots Hacked . | . . . . Non-combat . | . . . . Combat . | . . . . Robot Hacks Applied . | . . . . Relay Couplers Released . | . . . . Fabnet Peak Effective % . | . . . . Robots Rewired . | . . . . Allies Hacked . | . . . . Hacks Repelled . | . . . . Allies | -11 -10 -9 -9 -------- Run | Yrd Mat Mat Min Total Allies . | . . . . Largest Group . | . . . . Highest-Rated Group . | . . . . Highest-Rated Ally . | . . . . Total Orders . | . . . . Ally Attacks . | . . . . Total Damage . | . . . . Kills . | . . . . Allies Corrupted . | . . . . Allies Melted . | . . . . Intel | -11 -10 -9 -9 ------- Run | Yrd Mat Mat Min Active Infowar (turns) 630 | 6 624 . . Terrain 630 | 6 624 . . Robot Analysis Total 3 | . 2 1 . Derelict Logs Recovered 1 | . . . 1 Drone Launches . | . . . . Drone Recoveries . | . . . . Exploration | -11 -10 -9 -9 ------------- Run | Yrd Mat Mat Min Turns Passed 5194 | 118 1567 2010 1499 Spaces Moved 2848 | 60 450 1213 1125 Core 5 | 5 . . . Treads 505 | 55 450 . . Legs 2338 | . . 1213 1125 Wheels . | . . . . Hover . | . . . . Flight . | . . . . Fastest Speed 50 | 50 160 120 120 Average Speed 142 | 150 260 120 120 Slowest Speed 320 | 160 320 120 120 Overloaded Moves . | . . . . Propulsion Burnouts . | . . . . Robots Hopped . | . . . . Potential Cave-ins 15 | . . . 15 Cave-ins Triggered 3 | . . . 3 Exploration Rate (%) 60 | 4 64 87 86 Regions Visited 3 Branch Regions 1 Pre-discovered Areas 2 | . . . 2 Known Exits Taken . | . . . . Unknown Exits Taken 3 | 1 1 1 . Scrap Searched 1 | . . . 1 Spaces Dug 75 | . . . 75 Terrain Destroyed 432 | . . 26 406 Melee . | . . . . Projectile . | . . . . AOE 432 | . . 26 406 Terrain Rammed . | . . . . Walls Destroyed . | . . . . Machines Disabled . | . . . . Actions | -11 -10 -9 -9 --------- Run | Yrd Mat Mat Min Total 3427 | 74 625 1546 1182 Wait 179 | . 38 141 . Move 2843 | 59 449 1212 1123 Hop . | . . . . Pick Up 29 | 3 6 20 . Fast Attach 14 | 7 3 4 . Attach 8 | . 2 6 . Detach . | . . . . Swap 28 | . 5 21 2 Drop 30 | . 4 25 1 Fire 294 | 5 118 116 55 Melee . | . . . . Ram . | . . . . Kick 1 | . . 1 . Crush . | . . . . Escape Stasis 1 | . . . 1 Rewire . | . . . . Trap . | . . . . Miscellaneous . | . . . . Route ------- -11/Scrapyard -10/Materials (discovered 2 exits: *Mat / Min) -9/Materials (discovered 5 exits: *Mat x3 / [*Min x2]) -9/Mines (discovered 2 exits: *Mat x2) History --------- Turn | Location | Event 10 | -11/Scrapyard | Discovered new exit (range 15) 119 | -11/Scrapyard | Entered Materials 305 | -10/Materials | Build established: Mutant 366 | -10/Materials | Identified exit to Mines 1164 | -10/Materials | Discovered new exit (range 16) 1543 | -10/Materials | Core integrity fell below 50% 1637 | -10/Materials | Core integrity fell below 20% 1686 | -10/Materials | Entered another Materials area 1686 | -9/Materials | Evolved 2 slots: Propulsion x1, Utility x1 1994 | -9/Materials | Build established: Scavenger-Mutant 2374 | -9/Materials | Discovered new exit (range 15) 2745 | -9/Materials | Discovered new exit (range 10) 2813 | -9/Materials | Repaired Imp. Heat Sink 2840 | -9/Materials | Repaired Lgt. Armor Plating 2975 | -9/Materials | Build established: Mutant 3079 | -9/Materials | Identified exit to Materials 3314 | -9/Materials | Build established: Scavenger-Mutant 3535 | -9/Materials | Discovered new exit (range 6) 3567 | -9/Materials | Central database locked down 3696 | -9/Materials | Entered Mines 3808 | -9/Mines | Learned location of Recycling (-8) 3919 | -9/Mines | Assembled infested the area 3972 | -9/Mines | Discovered exit to Materials (range 15) 3976 | -9/Mines | Destroyed 8 combat bots 4029 | -9/Mines | Learned location of Storage (-8) 4232 | -9/Mines | Build established: Mutant 4342 | -9/Mines | Found a hidden stash of uninstalled traps 4365 | -9/Mines | Discovered exit to Materials (range 6) 5181 | -9/Mines | Crushed by falling debris 5182 | -9/Mines | Core integrity fell below 50% 5193 | -9/Mines | Crushed by falling debris 5193 | -9/Mines | Core integrity fell below 20% 5195 | -9/Mines | Crushed by falling debris 5195 | -9/Mines | Smashed by cave-in Last Messages --------------- 05170_ The unstable cave ceiling collapses. 05181_ Crushed by falling debris. 05181_ Imp. Aluminum Leg destroyed. 05181_ System corrupted by crushing effect (+1). 05181_ Imp. Ion Engine destroyed. 05181_ System corrupted by crushing effect (+2). 05181_ Hrd. Light Armor Plating destroyed. 05181_ System corrupted by crushing effect (+2). 05182_ System corrupted: Energy discharge (-20). 05184_ The unstable cave ceiling collapses. 05189_ Imp. Heat Sink destroyed. 05189_ Destroyed Imp. Heat Sink. 05190_ The unstable cave ceiling collapses. 05193_ Crushed by falling debris. 05193_ Beam Rifle destroyed. 05193_ System corrupted by crushing effect (+4). 05195_ The unstable cave ceiling collapses. 05195_ Crushed by falling debris. 05195_ Med. Storage Unit destroyed. 05195_ System corrupted by crushing effect (+4). Map ----- +----------------------------------------------------+ | ## #??????# | | ### ## #??????# | | ##?# ######### #??????# | | ####??## ##???????# ## #??????# | | ##??????# ## ##????????# ### #??????# | | ##???????# ## #?????????## ####?# #??????# | | ########## ## #??????????# ## ##????# #??????# | | ## #??????????# ## #???### ##?????# | | ## ###### ## ##????????## ## #??## ####### | | ### #??### ## ##???????# #??# | | #?# #### ##??????# ######??# ###### | | ##?# ######## #???????# ##????? | | ##??# #???????# ##?????? | | #???### #########???????# ####???#### | | #?????# #???????????????# #??##### # | | ??????# ##???????????????# #### | | ??????# ######???????????####?# %= | | ?????## ##????????######### ### ### = | | ###### #??????#### #?# < # | | # ## ###???## ####?# ## | | ## ##??# ### ##????########? | | ### # #### &&& ##?## ##?????????????? | | ##?# ###& &####?#####??????????????? | | #### ### #????????????????????? | | ## ]! #?????????????????#### | | #### # #@[ #????????????????## | | ##??## # # # = #???????????????## | | ##???## ### #??????????????## | | ##???# #?## # # #?????????????## | | ##?## ####### ## # ##?????????????# | | #?# ##?# # #?????????????# " | | #?## #?## # #????????????## " | | #??## #??###### #####????????????# " | | ##???# ##???????###????????????????# | | ####?????# #??????????????????????????## # | | ??????????#####???????????????????????????######## | | ?????????????????????????????????????????????????? | | | | | | | | | | | | | | | | | | | | | | | | | | | +----------------------------------------------------+ Best States ------------- Heat Dissipation 42 Energy Generation 12 Energy Capacity 265 Matter Stores 300 Matter Capacity 300 Sight Range 16 Terrain Scan Range 16 Terrain Scan Density 10 Armor Coverage 150 Evasion (%) 55 Recoil Reduction 2 Item Schematics ----------------- None Robot Schematics ------------------ None Fabricated ------------ Nothing Repaired ---------- Imp. Heat Sink | 10% | -9/Materials Lgt. Armor Plating | 30% | -9/Materials Alien Tech Used ----------------- None Achievements -------------- None Challenges ------------ None Game ------ Seed InterceptLightpackSegregator Manual? 0 Play Time 00:37:20 Cumulative 22.0 hours Start 2025.07.22 @ 14:09:19 End 2025.07.22 @ 15:01:04 Sessions 1 Manual Loads 0 Difficulty Rogue Special Mode None Game No. 40 Rogue 40 Adventurer 0 Explorer 0 Win Type - Total 0 Types 0/0/0/0/0/0/0/0/0/0 Lore% 11 Gallery% 18 Achievement% 22 Wizard Run 0 Options --------- Layout 1 ASCII 0 Keyboard 0 Movement Arrows Keybinds 0 Fullscreen 1 Font 24/Smallcaps Map View 50x35 Zoom Use 0% Tactical HUD 1 Map Filters NONE Filters NONE Steam 1 RUN: 73732134-ca7e-42e2-afb8-75dec4704cbf